Cogmind - Beta 13 @@@ ROGUE MODE // 2024.04.03 @ 00:09:34 Player: Astrozal Result: Self-destructed Performance ------------- Evolutions (1) 500 Regions Visited (2) 400 Robots Destroyed (21) 105 Value Destroyed (552) 552 Prototype IDs (2) 40 Alien Tech Used (0) 0 Bonus (24) 24 TOTAL SCORE: 1621 Bonus ------- High Alert Combat Kills 24 Cogmind --------- Core Integrity 142/400 Matter 205/300 Energy 100/100 System Corruption 19% Temperature Cool (0) Movement Rolling (105) Ox1 Location -9/Materials Parts ------- > --- POWER (1) -------- (None) > --- PROPULSION (4) --- Armored Wheel Armored Wheel > --- UTILITY (2) ------ Large Storage Unit > --- WEAPON (2) ------- Assault Rifle > --- INVENTORY (15) --- Light Ion Engine Light Ion Engine Flight Unit Small Matter Pod (0) Structural Scanner Improved Targeting Computer Beam Rifle Assault Rifle Light Assault Rifle Light Assault Rifle Peak State ------------ > --- POWER ------------ Ion Engine > --- PROPULSION ------- Aluminum Leg Aluminum Leg Aluminum Leg Aluminum Leg > --- UTILITY ---------- Large Storage Unit Medium Armor Plating > --- WEAPON ----------- Assault Rifle Heavy Assault Rifle > --- INVENTORY -------- Light Ion Engine Armored Wheel Armored Wheel Armored Wheel Cooling System Disposable Heat Sink Small Matter Pod Structural Scanner Sensor Array Improved Targeting Computer Trap Extractor Assault Rifle Light Assault Rifle Light Assault Rifle Grenade Launcher [Rating: 13] Favorites ----------- Power Ion Engine Engine Ion Engine Propulsion Aluminum Leg Leg Aluminum Leg Wheel Armored Wheel Utility Large Storage Unit Device Cooling System Storage Large Storage Unit Protection Medium Armor Plating Weapon Assault Rifle Energy Gun Beam Rifle Ballistic Gun Assault Rifle Launcher Grenade Launcher Build | -11 -10 -9 ------- Run | Yrd Mat Mat Slots Evolved 2 | . . 2 Power . | . . . Propulsion 2 | . . 2 Utility . | . . . Weapon . | . . . Parts Attached 28 | 6 8 14 Power 4 | 1 1 2 Engine 4 | 1 1 2 Core . | . . . Reactor . | . . . Propulsion 8 | 2 . 6 Treads . | . . . Leg 5 | 2 . 3 Wheel 3 | . . 3 Hover . | . . . Flight . | . . . Utility 6 | 1 4 1 Device 2 | . 1 1 Storage 2 | 1 1 . Processor . | . . . Hackware . | . . . Protection 2 | . 2 . Artifact . | . . . Weapon 10 | 2 3 5 Energy Gun 1 | . . 1 Energy Cannon . | . . . Ballistic Gun 6 | 2 1 3 Ballistic Cannon . | . . . Launcher 3 | . 2 1 Special Weapon . | . . . Impact Weapon . | . . . Slashing Weapon . | . . . Piercing Weapon . | . . . Special Melee Weapon . | . . . Unidentified Prototypes . | . . . Parts Lost 13 | . 1 12 Power 3 | . 1 2 Propulsion 6 | . . 6 Utility 2 | . . 2 Weapon 2 | . . 2 Highest Loss Streak 11 | . 1 11 To Critical Strikes . | . . . Average Slot Usage (%) 93 | . 99 88 Engine 11 | . 13 9 Leg 31 | . 28 34 Wheel 2 | . . 3 Device 1 | . 1 2 Storage 12 | . 14 11 Protection 9 | . 12 6 Ballistic Gun 18 | . 24 13 Launcher 4 | . 3 4 Naked Turns . | . . . Heaviest Build 38 | 11 37 38 Greatest Support 40 | 20 20 40 Greatest Overweight (x) 7 | . 1 7 Average Overweight (x) . | . . . Largest Inventory Capacity 15 | 8 15 15 Average Capacity 13 | 6 12 15 Most Carried 15 | 4 9 15 Average Carried 9 | 2 7 12 Final Capacity 15 | 8 15 15 Final Carried 10 | 4 9 10 Class Distribution -------------------- 83% | Mutant 16% | Scavenger-Mutant Dominant Class ---------------- Mutant | -10/Materials Mutant | -9/Materials Resources | -11 -10 -9 ----------- Run | Yrd Mat Mat Matter Collected 549 | 239 53 257 Remotely . | . . . Salvage Created 639 | . 75 564 Parts 38 | . 6 32 Haulers Intercepted . | . . . Recyclers Shooed 1 | . . 1 Parts Field Recycled . | . . . Retrieved Matter . | . . . Parts Self-Destructed . | . . . Prevented . | . . . Kills | -11 -10 -9 ------- Run | Yrd Mat Mat Combat Hostiles Destroyed 17 | . 2 15 Guns 10 | . 1 9 AOE 7 | . 1 6 Classes Destroyed 7 | . 2 5 Builder 1 | . . 1 Recycler 2 | . . 2 Watcher 1 | . 1 . Swarmer 6 | . . 6 Grunt 7 | . 2 5 Brawler 1 | . . 1 Sentry 3 | . . 3 Best Kill Streak 5 | . 2 5 Combat Bots Only 4 | . 1 4 Max Kills in Single Turn 4 | . 1 4 Gunslinging . | . . . Exploded 3 | . 1 3 Melee . | . . . Uniques/NPCs Destroyed . | . . . Combat | -11 -10 -9 -------- Run | Yrd Mat Mat Hostile Shots Fired 140 | . 5 135 Missed 41 | . 1 40 Damage Taken 1560 | . 129 1431 Core 302 | . 44 258 Absorbed by Shields . | . . . Core Remaining (%) 91 | 100 82 . Volleys Fired 45 | . 8 37 Largest 2 | . 2 2 Hottest 56 | . 50 56 Shots Fired 77 | . 13 64 Gun 64 | . 12 52 Cannon . | . . . Launcher 13 | . 1 12 Special . | . . . Kinetic 62 | . 12 50 Thermal 2 | . . 2 Explosive 13 | . 1 12 Electromagnetic . | . . . Robot Hit Streak 8 | . 8 7 Robot Miss Streak 3 | . 3 3 Penetration Max . | . . . Secondary Targets . | . . . Shots Hit Robots 45 | . 8 37 Core Hits 47 | . 4 43 Critical Kills . | . . . Critical Parts Destroyed . | . . . Critical Strikes . | . . . Melee Attacks . | . . . Impact . | . . . Slashing . | . . . Piercing . | . . . Sneak Attacks . | . . . Combat Hostiles . | . . . Follow-up Attacks . | . . . Damage Inflicted 1484 | 3 121 1360 Guns 551 | . 86 465 Cannons . | . . . Explosions 836 | . 35 801 Melee . | . . . Ramming 97 | 3 . 94 Kinetic 537 | . 86 451 Thermal 14 | . . 14 Explosive 836 | . 35 801 Electromagnetic . | . . . Impact . | . . . Slashing . | . . . Piercing . | . . . Highest Corruption 19 | . . 19 Average Corruption 12 | . . 12 Corruption Purged . | . . . Corruption Blocked . | . . . Effects 3 | . . 3 Message Errors 1 | . . 1 Data Loss (major) 2 | . . 2 Overload Shots . | . . . Overflow Damage . | . . . Projectiles . | . . . Explosions . | . . . Melee . | . . . Knockbacks 1 | . . 1 Impact 1 | . . 1 Kinetic . | . . . Secondary . | . . . Self-Inflicted Damage 61 | . . 61 Shots 1 | . . 1 Rammed 17 | . . 17 Targets Rammed 24 | 1 . 23 Kicked 7 | 1 . 6 Crushed . | . . . Highest Temperature 12 | . 12 3 Average Temperature 4 | . 6 2 Received Heat Transfer 387 | . 24 363 Siege Activations . | . . . Robots Corrupted . | . . . Combat Hostiles . | . . . Parts Fried . | . . . Impact Corruptions . | . . . Robots Melted . | . . . Combat Hostiles . | . . . Parts Melted . | . . . Heat Transferred 37 | . . 37 Parts Sabotaged . | . . . Parts Stolen . | . . . Parts Stripped . | . . . Power Chain Reactions . | . . . Alert | -11 -10 -9 ------- Run | Yrd Mat Mat Peak Influence 465 | . 82 465 Initial 34 | . . 34 Average 110 | . 35 190 Maximum Alert Level 2 | . . 2 Low Security (%) 76 | 100 100 53 Level 1 22 | . . 44 Level 2 1 | . . 2 Level 3 . | . . . Level 4 . | . . . Level 5 . | . . . High Security . | . . . Max Security . | . . . Squads Dispatched 3 | . 2 1 Investigation 3 | . 2 1 Extermination . | . . . Reinforcement . | . . . Assault . | . . . Garrison . | . . . Intercept . | . . . Searches Triggered . | . . . Construction Impeded . | . . . Haulers Reinforced . | . . . Active Scanning Responses . | . . . Cargo Convoy Interrupts . | . . . Stealth | -11 -10 -9 --------- Run | Yrd Mat Mat Distress Signals 5 | . 1 4 Communications Jammed . | . . . Distress Signals . | . . . Times Spotted 32 | . 4 28 Peak Tracking Total 11 | . 2 11 Tactical Retreats 2 | . . 2 Traps | -11 -10 -9 ------- Run | Yrd Mat Mat Traps Triggered 3 | . 2 1 Indirectly . | . . . Trap Hack Attempts . | . . . Triggered . | . . . Disarmed . | . . . Reprogrammed . | . . . Reused . | . . . Traps Extracted . | . . . Installed . | . . . Triggered . | . . . Machines | -11 -10 -9 ---------- Run | Yrd Mat Mat Machines Disabled 5 | . 1 4 Max in Single Turn 2 | . 1 2 Machines Repaired . | . . . Machines Dismantled . | . . . Machines Sabotaged . | . . . Overloaded Fab Kills . | . . . Hacking | -11 -10 -9 --------- Run | Yrd Mat Mat Machines Accessed 4 | . 3 1 Terminals 3 | . 2 1 Fabricators . | . . . Repair Stations . | . . . Recycling Units 1 | . 1 . Scanalyzers . | . . . Garrison Access . | . . . Total Hacks 10 | . 6 4 Successful 4 | . 2 2 Failed 6 | . 4 2 Catastrophic . | . . . Database Lockouts . | . . . Manual . | . . . Terminals 9 | . 5 4 Fabricators . | . . . Repair Stations . | . . . Recycling Units 1 | . 1 . Scanalyzers . | . . . Garrison Access . | . . . Terminal Hacks 3 | . 1 2 Record 1 | . 1 . Prototype ID Bank 1 | . . 1 Emergency Access Points 1 | . . 1 Fabricator Hacks . | . . . Repair Station Hacks . | . . . Recycling Unit Hacks 1 | . 1 . Report Inventory 1 | . 1 . Scanalyzer . | . . . Garrison Access Hacks . | . . . Unauthorized Hacks . | . . . Terminals . | . . . Fabricators . | . . . Repair Stations . | . . . Recycling Units . | . . . Scanalyzers . | . . . Garrison Access . | . . . Data Cores Recovered . | . . . Used . | . . . Hacking Detections 3 | . 3 . Full Trace Events 1 | . 1 . Feedback Events . | . . . Feedback Blocked . | . . . Robot Schematics Acquired . | . . . Robots Built . | . . . Authchips . | . . . Time . | . . . Total Robot Build Rating . | . . . Part Schematics Acquired . | . . . Parts Built . | . . . Authchips . | . . . Time . | . . . Total Part Build Rating . | . . . Parts Repaired . | . . . Time . | . . . Parts Recycled . | . . . Recycled Matter . | . . . Retrieved Matter . | . . . Retrieved Components . | . . . Parts Scanalyzed . | . . . Part Schematics Acquired . | . . . Parts Damaged . | . . . Bothacking | -11 -10 -9 ------------ Run | Yrd Mat Mat Used RIF Installer . | . . . Robots Hacked . | . . . Non-combat . | . . . Combat . | . . . Robot Hacks Applied . | . . . Relay Couplers Released . | . . . Fabnet Peak Effective % . | . . . Robots Rewired . | . . . Allies Hacked . | . . . Hacks Repelled . | . . . Allies | -11 -10 -9 -------- Run | Yrd Mat Mat Total Allies . | . . . Largest Group . | . . . Highest-Rated Group . | . . . Highest-Rated Ally . | . . . Total Orders . | . . . Ally Attacks . | . . . Total Damage . | . . . Kills . | . . . Allies Corrupted . | . . . Allies Melted . | . . . Intel | -11 -10 -9 ------- Run | Yrd Mat Mat Robot Analysis Total . | . . . Derelict Logs Recovered . | . . . Drone Launches . | . . . Drone Recoveries . | . . . Exploration | -11 -10 -9 ------------- Run | Yrd Mat Mat Turns Passed 1020 | 105 394 521 Spaces Moved 575 | 80 213 282 Core 13 | 6 . 7 Treads . | . . . Legs 537 | 74 213 250 Wheels 25 | . . 25 Hover . | . . . Flight . | . . . Fastest Speed 50 | 50 120 105 Average Speed 140 | 114 166 127 Slowest Speed 400 | 120 190 400 Overloaded Moves . | . . . Propulsion Burnouts . | . . . Robots Hopped . | . . . Cave-ins Triggered 2 | . . 2 Exploration Rate (%) 21 | 4 33 27 Regions Visited 2 Branch Regions . Pre-discovered Areas . | . . . Known Exits Taken . | . . . Unknown Exits Taken 2 | 1 1 . Scrap Searched . | . . . Spaces Dug . | . . . Terrain Destroyed 61 | . 9 52 Melee . | . . . Projectile . | . . . AOE 61 | . 9 52 Terrain Rammed . | . . . Walls Destroyed . | . . . Machines Disabled . | . . . Actions | -11 -10 -9 --------- Run | Yrd Mat Mat Total 702 | 90 239 373 Wait . | . . . Move 574 | 80 212 282 Hop . | . . . Pick Up 25 | 4 8 13 Fast Attach 7 | 6 1 . Attach 10 | . 1 9 Detach . | . . . Swap 11 | . 6 5 Drop 7 | . 3 4 Fire 45 | . 8 37 Melee . | . . . Ram 17 | . . 17 Kick 6 | . . 6 Crush . | . . . Escape Stasis . | . . . Rewire . | . . . Trap . | . . . Miscellaneous . | . . . Route ------- -11/Scrapyard -10/Materials -9/Materials History --------- Turn | Location | Event 7 | -11/Scrapyard | Discovered new exit (range 15) 106 | -11/Scrapyard | Entered Materials 313 | -10/Materials | Build established: Mutant 443 | -10/Materials | Discovered new exit (range 15) 500 | -10/Materials | Entered another Materials area 500 | -9/Materials | Evolved 2 slots: Propulsion x2 961 | -9/Materials | Core integrity fell below 50% 961 | -9/Materials | System corruption reached 10% 964 | -9/Materials | Crushed by falling debris 983 | -9/Materials | Crushed by falling debris 1014 | -9/Materials | Lost 11 parts (2p6n1u2w) 1021 | -9/Materials | Self-destructed Last Messages --------------- Arm. Wheel broken. Destabilizing: Short circuit. The unstable cave ceiling collapses. Crushed by falling debris. [Achievement: Unlikely Earthworm] Lgt. Ion Engine destroyed. System corrupted by crushing effect (+2). B-36 Bruiser destroyed. S-10 Pest destroyed. The unstable cave ceiling collapses. Crushed by falling debris. Broken Arm. Wheel destroyed. System corrupted by crushing effect (+5). Lgt. Armor Plating crushed. The unstable cave ceiling collapses. G-47 Trooper crushed by falling debris. D,TK5E4ZWCC&SLCAVR9GPY& Acquired Flight Unit. System corrupted: Substantial component data lost. Map ----- +----------------------------------------------------+ | ?????????????????????????????????????????????????? | | ?????????????????????????????????????????????????? | | ????????????????????????????????? ???????????????? | | ???????????????????????????????# ?????????????? | | ???????????????????????????? ??""" #????? | | ?????????????????????????? ??"" #????? | | ?????????????????????????? #????? | | ??????????????????????????? #????? | | ??????????????? ??????##+ [= #????? | | ??????????????# ?????? * #??""? | | ??????????????# ??????? ! #?""?? | | ??????????????# ????????" !# ??? | | ??????????????# ???????? =%"Y" ##### | | ??????????????# ########?# % """% | | ??????????????# # #??# | | ??????????????+ + """" #???# | | ??????????????# #?## "" #???# *! #??? | | ??????????????# #?# "" #???# =%= #????????? | | ??????????????# #?# #???# ! #????????? | | ??????????????# ^ ####| #???# #????????? | | ? #######+#####^ ## ####+####### #????????? | | #????????? | | = #????????? | | # ! #????????? | | ???????# "" ####################????????? | | ####???# #%# @###????????????????????? | | ! # ### #?????????????????????? | | ? + #######?????????????????????? | | ???????# #???????????????????????????? | | ???????# #???????????????????????????? | | ######## " " ??????????????????????? | | """" ?????????????????????? | | ?????????????????????? | | ##### ?????????????????????? | | ##???????????????????????????? | | ## #????????????????????????????? | | ############ #????????????????????????????? | | !#??????????# #????????????????????????????? | | !!!!##??????????# #????????????????????????????? | | #####??????????? ????????????????????????????? | | ???????????????? ?????????????????????????????? | | ?????????????????? ?????????????????????????????? | | ?????????????????????????????????????????????????? | | ?????????????????????????????????????????????????? | | ?????????????????????????????????????????????????? | | ?????????????????????????????????????????????????? | | ?????????????????????????????????????????????????? | | ?????????????????????????????????????????????????? | | ?????????????????????????????????????????????????? | | ?????????????????????????????????????????????????? | +----------------------------------------------------+ Best States ------------- Heat Dissipation 50 Energy Generation 10 Energy Capacity 250 Matter Stores 284 Matter Capacity 300 Sight Range 16 Terrain Scan Density 10 Armor Coverage 225 Evasion (%) 55 Trap Extractor Capacity 4 Item Schematics ----------------- None Robot Schematics ------------------ None Fabricated ------------ Nothing Alien Tech Used ----------------- None Achievements -------------- Unlikely Earthworm Challenges ------------ None Game ------ Seed AluminumZhirovHumpback Manual? 0 Play Time 00:16:53 Cumulative 3.2 hours Start 2024.04.02 @ 23:54:41 End 2024.04.03 @ 00:09:34 Sessions 1 Manual Loads 0 Difficulty Rogue Special Mode None Game No. 7 Rogue 7 Adventurer 0 Explorer 0 Win Type - Total 0 Types 0/0/0/0/0/0/0/0/0 Lore% 4 Gallery% 5 Achievement% 8 Wizard Run 0 Options --------- Layout 1 ASCII 1 Keyboard 0 Movement Arrows Keybinds 0 Fullscreen 1 Font 16/Terminus Map View 50x40 Zoom Use 0% Tactical HUD 0 Map Filters NONE Filters NONE Steam SD RUN: e488d6ad-7cfd-4c63-86ae-0679f953489f